fUSD/lending_fUSD_20260413
["ID","MTS","AMOUNT","RATE_DAILY","PERIOD"]
[420374359,1776043847310,-500.0,0.00038356,15]
[420374361,1776043847320,-993.96,0.00038356,15]
[420374363,1776043847330,-948.34,0.00038356,15]
[420374365,1776043847343,-500.0,0.00038356,15]
[420374367,1776043847365,-799.93,0.00038356,15]
[420374369,1776043847376,-1177.5,0.00038356,15]
[420374371,1776043847386,-500.0,0.00038356,15]
[420374373,1776043847407,-500.0,0.00038356,15]
[420374375,1776043847420,-2237.56,0.00038356,15]
[420374377,1776043847430,-1773.87,0.00038356,15]
[420374378,1776043847444,-256.86477137,0.00038356,15]
[420374431,1776043848277,-509.0,0.00033356,8]
[420374434,1776043848287,-509.0,0.00036466,12]
[420374435,1776043848300,-10.73033201,0.00038356,15]
[420374473,1776043848879,-5124.479791,0.00037857,120]
[420374475,1776043848910,-232.40489662,0.00038356,15]
[420374477,1776043848921,-500.0,0.00038356,15]
[420374479,1776043848964,-955.45,0.00038356,15]
[420374481,1776043848976,-500.0,0.00038356,15]
[420374483,1776043848987,-994.91,0.00038356,15]
[420374485,1776043849018,-500.0,0.00038356,15]
[420374486,1776043849029,-500.0,0.00038356,15]
[420374487,1776043849039,-500.0,0.00038356,15]
[420374488,1776043849050,-500.0,0.00038356,15]
[420374489,1776043849064,-500.0,0.00038356,15]
[420374490,1776043849075,-978.09,0.00038356,15]
[420374491,1776043849086,-500.0,0.00038356,15]
[420374492,1776043849098,-500.0,0.00038356,15]
[420374493,1776043849109,-2840.24,0.00038356,15]
[420374494,1776043849119,-1278.31,0.00038356,15]
[420374495,1776043849133,-860.2,0.00038356,15]
[420374496,1776043849144,-596.31,0.00038356,15]
[420374497,1776043849154,-500.0,0.00038356,15]
[420374498,1776043849165,-651.72,0.00038356,15]
[420374499,1776043849180,-827.88,0.00038356,15]
[420374500,1776043849192,-500.0,0.00038356,15]
[420374501,1776043849207,-1168.55,0.00038356,15]
[420374502,1776043849217,-500.0,0.00038356,15]
[420374503,1776043849227,-1159.17,0.00038356,15]
[420374504,1776043849240,-429.59483838,0.00038356,15]
[420374505,1776043849260,-483.98313697,0.00038356,15]
[420374506,1776043849270,-1705.17,0.00038356,15]
[420374507,1776043849283,-500.0,0.00038356,15]
[420374508,1776043849293,-500.0,0.00038356,15]
[420374509,1776043849305,-2437.24,0.00038356,15]
[420374510,1776043849315,-500.0,0.00038356,15]
[420374511,1776043849327,-500.0,0.00038356,15]
[420374512,1776043849344,-500.0,0.00038356,15]
[420374513,1776043849355,-1592.54,0.00038356,15]
[420374514,1776043849366,-504.2,0.00038356,15]
[420374515,1776043849378,-1143.55,0.00038356,15]
[420374516,1776043849397,-1299.08,0.00038356,15]
[420374517,1776043849416,-500.0,0.00038356,15]
[420374518,1776043849430,-500.0,0.00038356,15]
[420374519,1776043849441,-500.0,0.00038356,15]
[420374520,1776043849472,-1522.86,0.00038356,15]
[420374521,1776043849486,-1749.49,0.00038356,15]
[420374522,1776043849511,-1243.88,0.00038356,15]
[420374523,1776043849522,-1245.33,0.00038356,15]
[420374524,1776043849534,-500.0,0.00038356,15]
[420374525,1776043849565,-1095.0,0.00038356,15]
[420374526,1776043849575,-771.2,0.00038356,10]
[420374527,1776043849586,-1990.89,0.00038356,15]
[420374528,1776043849604,-500.0,0.00038356,15]
[420374529,1776043849622,-500.0,0.00038356,15]
[420374530,1776043849633,-500.0,0.00038356,15]
[420374531,1776043849647,-1478.47,0.00038356,15]
[420374532,1776043849658,-376.21156563,0.00038356,15]
[420374533,1776043849669,-500.0,0.00038356,15]
[420374534,1776043849679,-500.0,0.00038356,15]
[420374535,1776043849693,-654.84,0.00038356,15]
[420374536,1776043849703,-500.0,0.00038356,15]
[420374537,1776043849714,-500.0,0.00038356,15]
[420374538,1776043849980,-1081.44,0.00038356,15]
[420374539,1776043850006,-500.0,0.00038356,15]
[420374540,1776043850020,-902.07,0.00038356,15]
[420374541,1776043850034,-632.97,0.00038356,15]
[420374542,1776043850049,-500.0,0.00038356,15]
[420374543,1776043850064,-513.1470712,0.00038356,15]
[420374544,1776043850081,-500.0,0.00038356,15]
[420374545,1776043850099,-787.9,0.00038356,15]
[420374546,1776043850125,-500.0,0.00038356,15]
[420374547,1776043850134,-661.86,0.00038356,15]
[420374548,1776043850148,-500.0,0.00038356,15]
[420374549,1776043850166,-500.0,0.00038356,15]
[420374550,1776043850177,-500.0,0.00038356,15]
[420374551,1776043850188,-500.0,0.00038356,15]
[420374552,1776043850219,-500.0,0.00038356,15]
[420374553,1776043850230,-500.0,0.00038356,15]
[420374554,1776043850244,-1372.38,0.00038356,15]
[420374555,1776043850262,-1056.77,0.00038356,15]
[420374556,1776043850288,-1109.2,0.00038356,15]
[420374557,1776043850301,-1643.95,0.00038356,15]
[420374558,1776043850315,-500.0,0.00038356,15]
[420374559,1776043850342,-774.49,0.00038356,15]
[420374560,1776043850352,-500.0,0.00038356,15]
[420374561,1776043850370,-500.0,0.00038356,15]
[420374562,1776043850385,-1248.09,0.00038356,15]
[420374563,1776043850395,-500.0,0.00038356,15]
[420374564,1776043850410,-1179.6,0.00038356,15]
[420374565,1776043850430,-748.79,0.00038356,15]
[420374566,1776043850459,-500.0,0.00038356,15]
[420374567,1776043850470,-500.0,0.00038356,15]
[420374568,1776043850481,-500.0,0.00038356,15]
[420374569,1776043850509,-1660.46,0.00038356,15]
[420374570,1776043850523,-971.8,0.00038356,15]
[420374571,1776043850539,-500.0,0.00038356,15]
[420374572,1776043850559,-658.46,0.00038356,15]
[420374573,1776043850581,-500.0,0.00038356,15]
[420374574,1776043850626,-1520.21,0.00038356,15]
[420374575,1776043850643,-647.94544321,0.00038356,15]
[420374576,1776043850675,-500.0,0.00038356,15]
[420374577,1776043850686,-507.94,0.00038356,15]
[420374578,1776043850722,-1394.17,0.00038356,15]
[420374579,1776043850758,-500.0,0.00038356,15]
[420374580,1776043850781,-641.95,0.00038356,15]
[420374581,1776043850808,-658.36,0.00038356,15]
[420374582,1776043850822,-1613.16,0.00038356,15]
[420374583,1776043850842,-500.0,0.00038356,15]
[420374584,1776043850895,-232.94756224,0.00038356,15]
[420374585,1776043850941,-500.0,0.00038356,15]
[420374586,1776043850952,-500.0,0.00038356,15]
[420374587,1776043850962,-500.0,0.00038356,15]
[420374588,1776043850975,-500.0,0.00038356,15]
[420374589,1776043850998,-500.0,0.00038356,15]
[420374590,1776043851009,-500.0,0.00038356,15]
[420374591,1776043851019,-500.0,0.00038356,15]
[420374592,1776043851038,-1590.96,0.00038356,15]
[420374593,1776043851064,-500.0,0.00038356,15]
[420374594,1776043851079,-1035.19,0.00038356,15]
[420374595,1776043851096,-1053.99,0.00038356,15]
[420374596,1776043851106,-1295.49,0.00038356,15]
[420374597,1776043851118,-500.0,0.00038356,15]
[420374598,1776043851131,-500.0,0.00038356,15]
[420374599,1776043851142,-500.0,0.00038356,15]
[420374600,1776043851153,-500.0,0.00038356,15]
[420374601,1776043851165,-615.71,0.00038356,15]
[420374602,1776043851176,-500.0,0.00038356,15]
[420374603,1776043851186,-982.26,0.00038356,15]
[420374604,1776043851214,-3759.73,0.00038356,15]
[420374605,1776043851225,-1219.9,0.00038356,15]
[420374606,1776043851234,-500.0,0.00038356,15]
[420374607,1776043851255,-495.0,0.00038356,120]
[420374608,1776043851266,-495.0,0.00038356,120]
[420374609,1776043851279,-500.0,0.00038356,15]
[420374610,1776043851294,-556.44,0.00038356,15]
[420374611,1776043851306,-506.34713376,0.00038356,15]
[420374612,1776043851318,-631.75,0.00038356,15]
[420374613,1776043851342,-566.52,0.00038356,15]
[420374614,1776043851354,-500.0,0.00038356,15]
[420374615,1776043851383,-1227.91,0.00038356,15]
[420374616,1776043851400,-500.0,0.00038356,15]
[420374617,1776043851416,-500.0,0.00038356,15]
[420374618,1776043851426,-921.14,0.00038356,15]
[420374619,1776043851450,-500.0,0.00038356,15]
[420374620,1776043851460,-500.0,0.00038356,15]
[420374621,1776043851475,-500.0,0.00038356,15]
[420374622,1776043851490,-509.23,0.00038356,15]
[420374623,1776043851500,-225.43,0.00038356,14]
[420374624,1776043851511,-500.0,0.00038356,15]
[420374625,1776043851524,-500.0,0.00038356,15]
[420374626,1776043851536,-1362.49,0.00038356,15]
[420374627,1776043851546,-1675.33,0.00038356,15]
[420374628,1776043851559,-500.0,0.00038356,15]
[420374629,1776043851574,-500.0,0.00038356,15]
[420374630,1776043851586,-573.34,0.00038356,15]
[420374631,1776043851605,-443.10481428,0.00038356,15]
[420374632,1776043851624,-56.89518572,0.00038356,15]
[420374633,1776043851642,-594.36887131,0.00038356,15]
[420374634,1776043851654,-712.21,0.00038356,15]
[420374635,1776043851671,-1071.84321643,0.00038356,15]
[420374636,1776043851684,-1516.34678357,0.00038356,15]
[420374637,1776043851699,-500.0,0.00038356,120]
[420374638,1776043851709,-500.0,0.00038356,15]
[420374639,1776043851725,-500.0,0.00038356,15]
[420374640,1776043851735,-500.0,0.00038356,15]
[420374641,1776043851745,-870.83211645,0.00038356,15]
[420374642,1776043851766,-376.50788355,0.00038356,15]
[420374643,1776043851776,-2153.46412985,0.00038356,15]
[420374644,1776043851792,-643.80513405,0.00038356,15]
[420374645,1776043851832,-371.095,0.00038356,15]
[420374646,1776043851932,-7217.0157361,0.00038356,15]
[420374647,1776043851949,-2014.96,0.00038356,15]
[420374648,1776043851973,-500.0,0.00038356,15]
[420374649,1776043851988,-1270.42,0.00038356,15]
[420374650,1776043852023,-1232.84,0.00038356,15]
[420374651,1776043852042,-500.0,0.00038356,15]
[420374652,1776043852072,-662.75,0.00038356,15]
[420374653,1776043852086,-559.05531589,0.00038356,15]
[420374654,1776043895898,162.0,0.0003013,120]
[420374655,1776043897883,167.78176952,0.0003013,120]
[420374656,1776043961934,906.0,0.0003013,120]
[420374657,1776043963979,351.08419038,0.0003013,120]
[420374658,1776044022528,343.0,0.0003013,120]
[420374660,1776044076044,456.0264959,0.0003013,120]
[420374661,1776044103570,152.6,0.0003013,120]
[420374662,1776044169714,1004.0,0.00030136,120]
[420374663,1776044230551,619.55,0.00030136,120]
[420374681,1776044478762,324.275,0.00030137,120]
[420374683,1776044952150,-250.0,0.00013,2]
[420374684,1776044952182,-250.0,0.000135,2]
[420374685,1776044952206,-150.0,0.00013791,2]
[420374686,1776044952245,-150.0,0.0001386,2]
[420374687,1776044952270,-150.0,0.0001393,2]
[420374688,1776044952306,-300.0,0.00013999,2]
[420374689,1776044952337,-300.0,0.00013999,2]
[420374690,1776044952361,-5000.0,0.00014,2]
[420374691,1776044952389,-195.0,0.00014,2]
[420374692,1776044952412,-150.0,0.00014134,2]
[420374693,1776044952438,-4943.14070297,0.000143,2]
[420374694,1776044959379,-56.85929703,0.000143,2]
[420374695,1776044959421,-195.0,0.000143,2]
[420374696,1776044959462,-300.6328008,0.000143,2]
[420374697,1776044959498,-250.0,0.000143,2]
[420374698,1776044969157,-150.0,0.000148,2]
[420374699,1776044969192,-380.0,0.000148,2]
[420374700,1776044969226,-294.67012006,0.00014825,2]
[420374701,1776044969265,-195.0,0.00014825,2]
[420374702,1776044969309,-195.0,0.00014825,2]
[420374703,1776044969343,-278.87266728,0.00014825,2]
[420374704,1776044969371,-300.0,0.00015,2]
[420374705,1776044969401,-420.0,0.00015337,2]
[420374706,1776044969440,-1200.0,0.00015452,2]
[420374707,1776044969471,-500.0,0.00015492,2]
[420374708,1776044969503,-500.0,0.00015492,2]
[420374709,1776044969534,-500.0,0.00015492,2]
[420374710,1776044969564,-300.0,0.00015591,2]
[420374711,1776044969604,-299.99,0.00015592,2]
[420374712,1776044969631,-150.99,0.00015592,2]
[420374713,1776044969656,-6243.23933339,0.00015592,2]
[420374715,1776044985316,937.08,0.00025317,120]
[420374716,1776044985568,937.08,0.00028482,120]
[420374724,1776045032436,-800.83928989,0.00015068,2]
[420374726,1776045032446,-119.62066661,0.00015592,2]
[420374728,1776045032464,-150.5234,0.000161,2]
[420374730,1776045032474,-444.24780486,0.00016714,2]
[420374732,1776045032489,-65.75219514,0.00016714,2]
[420374734,1776045032501,-587.0,0.00016802,2]
[420374736,1776045032510,-341.5985378,0.00016871,2]
[420374740,1776045032545,-264.71585244,0.00016871,2]
[420374742,1776045032555,-252.39865328,0.00016871,2]
[420374745,1776045032565,-506.0,0.0001688,2]
[420374747,1776045032574,-506.0,0.00016917,2]
[420374750,1776045032585,-506.0,0.00017082,2]
[420374752,1776045032595,-506.0,0.00017084,2]
[420374754,1776045032609,-506.0,0.00017245,2]
[420374756,1776045032618,-151.0486,0.000173,2]
[420374758,1776045032630,-506.0,0.00017344,2]
[420374760,1776045032644,-1200.0,0.00017567,2]
[420374762,1776045032655,-506.0,0.00017568,2]
[420374764,1776045032666,-168.0,0.00017572,2]
[420374766,1776045032678,-506.0,0.00017632,2]
[420374768,1776045032698,-506.0,0.00017715,2]
[420374770,1776045032710,-506.0,0.00017729,2]
[420374771,1776045032721,-506.0,0.00017778,2]
[420374772,1776045032741,-506.0,0.00017829,2]
[420374773,1776045032755,-506.0,0.00017886,2]
[420374774,1776045032772,-631.0,0.00017914,2]
[420374775,1776045032787,-506.0,0.00017928,2]
[420374776,1776045032819,-506.0,0.00017973,2]
[420374777,1776045032833,-506.0,0.00017975,2]
[420374778,1776045032877,-506.0,0.00017976,2]
[420374779,1776045032887,-506.0,0.00017994,2]
[420374780,1776045032906,-506.0,0.00018134,2]
[420374781,1776045032915,-506.0,0.00018186,2]
[420374782,1776045032927,-506.0,0.00018199,2]
[420374783,1776045032948,-506.0,0.00018292,2]
[420374784,1776045032957,-506.0,0.00018357,2]
[420374785,1776045032969,-506.0,0.00018381,2]
[420374786,1776045032989,-151.5756,0.000187,2]
[420374787,1776045033001,-150.0,0.00018978,2]
[420374788,1776045033012,-1680.0,0.0001927,2]
[420374789,1776045033033,-152.1045,0.0002,2]
[420374790,1776045033046,-2260.0,0.00021139,2]
[420374791,1776045033055,-152.6353,0.000213,2]
[420374792,1776045033064,-805.1,0.00021445,2]
[420374793,1776045033084,-805.1,0.00022517,2]
[420374794,1776045033095,-153.1679,0.000226,2]
[420374795,1776045033106,-581.482,0.00023482,2]
[420374796,1776045033124,-3538.865,0.00023482,2]
[420374797,1776045033136,-277.633,0.00023482,2]
[420374798,1776045033146,-1267.798,0.00023482,2]
[420374799,1776045033164,-6044.453,0.00023482,2]
[420374800,1776045033174,-805.1,0.00023589,2]
[420374801,1776045033186,-153.7023,0.000239,2]
[420374802,1776045033203,-805.1,0.00024662,2]
[420374803,1776045033218,-2000.0,0.00024814,2]
[420374804,1776045033230,-1000.0,0.00024833,2]
[420374805,1776045033244,-155.53,0.00024923,2]
[420374806,1776045033265,-154.2386,0.000252,2]
[420374807,1776045033275,-261.08,0.00025317,2]
[420374808,1776045033291,-805.1,0.00025734,2]
[420374809,1776045033309,-261.08,0.0002595,2]
[420374810,1776045033322,-2614.4465864,0.00026161,2]
[420374811,1776045033344,-254.17,0.00026428,2]
[420374812,1776045033360,-155.38,0.00026563,2]
[420374813,1776045033371,-261.08,0.00026583,2]
[420374814,1776045033404,-154.7768,0.000266,2]
[420374815,1776045033414,-1188.7,0.00026608,2]
[420374816,1776045033439,-509.0,0.00027137,2]
[420374817,1776045033454,-261.08,0.00027216,2]
[420374818,1776045033467,-208.64,0.00027397,2]
[420374819,1776045033481,-261.08,0.00027849,2]
[420374820,1776045033506,-155.3169,0.000279,2]
[420374821,1776045033515,-2000.0,0.00027916,2]
[420374822,1776045033528,-1054.0,0.00028482,10]
[420374823,1776045033547,-155.8589,0.000292,2]
[420374824,1776045033557,-2614.4465864,0.00029578,2]
[420374825,1776045033566,-1281.31921238,0.0003,10]
[420374826,1776045033582,-1701.901,0.00030137,25]
[420374827,1776045033594,-172.08460474,0.00030137,25]
[420374828,1776045033603,-1310.78669117,0.00030413,2]
[420374829,1776045033616,-4311.43348281,0.00030413,2]
[420374830,1776045033626,-2058.71464458,0.00030413,2]
[420374831,1776045033638,-156.4027,0.000305,2]
[420374832,1776045033648,-509.0,0.00030913,6]
[420374833,1776045033660,-2000.0,0.00031018,2]
[420374834,1776045033670,-314.0,0.000311,2]
[420374835,1776045033683,-937.08,0.00031646,120]
[420374836,1776045033692,-156.9484,0.000318,2]
[420374837,1776045033707,-195.820349,0.00031949,14]
[420374838,1776045033715,-286.062271,0.00031949,120]
[420374839,1776045033725,-2763.404666,0.00031949,120]
[420374840,1776045033734,-204.696641,0.00031949,14]
[420374841,1776045033746,-881.191567,0.00031951,120]
[420374842,1776045033755,-2581.629578,0.00031951,120]
[420374843,1776045033764,-191.23182,0.00031951,14]
[420374844,1776045033776,-286.062272,0.00031951,14]
[420374845,1776045033786,-1674.478638,0.00031951,120]
[420374846,1776045033796,-167.44,0.00032591,3]
[420374847,1776045033806,-500.0,0.00032603,10]
[420374848,1776045033815,-500.0,0.00032603,10]
[420374849,1776045033825,-500.0,0.00032603,10]
[420374850,1776045033834,-319.23128294,0.00032603,10]
[420374851,1776045033844,-500.0,0.00032603,10]
[420374852,1776045033853,-500.0,0.00032603,10]
[420374853,1776045033864,-500.0,0.00032603,10]
[420374854,1776045033874,-500.0,0.00032603,10]
[420374855,1776045033884,-204.81669267,0.00032603,10]
[420374856,1776045033893,-162.77554069,0.00032603,10]
[420374857,1776045033903,-500.0,0.00032603,10]
[420374858,1776045033913,-500.0,0.00032603,10]
[420374859,1776045033923,-500.0,0.00032603,10]
[420374860,1776045033934,-500.0,0.00032603,10]
[420374861,1776045033943,-500.0,0.00032603,10]
[420374862,1776045033953,-1631.0,0.00032603,10]
[420374863,1776045033963,-500.0,0.00032603,10]
[420374864,1776045033974,-500.0,0.00032603,10]
[420374865,1776045033982,-1631.0,0.00032603,10]
[420374866,1776045033993,-1631.0,0.00032603,10]
[420374867,1776045034008,-500.0,0.00032603,10]
[420374868,1776045034018,-500.0,0.00032603,10]
[420374869,1776045034033,-1631.0,0.00032603,10]
[420374870,1776045034043,-378.15591797,0.00032603,10]
[420374871,1776045034053,-282.87326252,0.00032603,10]
[420374872,1776045034069,-150.0,0.00032603,2]
[420374873,1776045034081,-1631.0,0.00032603,10]
[420374874,1776045034102,-1631.0,0.00032603,10]
[420374875,1776045034113,-1631.0,0.00032603,10]
[420374876,1776045034126,-1631.0,0.00032603,10]
[420374877,1776045034144,-1631.0,0.00032603,10]
[420374878,1776045034164,-500.0,0.00032603,10]
[420374879,1776045034174,-1631.0,0.00032603,10]
[420374880,1776045034188,-500.0,0.00032603,10]
[420374881,1776045034211,-1631.0,0.00032603,10]
[420374882,1776045034224,-500.0,0.00032603,10]
[420374883,1776045034237,-1631.0,0.00032603,10]
[420374884,1776045034264,-500.0,0.00032603,10]
[420374885,1776045034274,-1631.0,0.00032603,10]
[420374886,1776045034301,-500.0,0.00032603,10]
[420374887,1776045034329,-512.60495035,0.00032603,10]
[420374888,1776045034343,-716.26211584,0.00032603,10]
[420374889,1776045034370,-402.13293381,0.00032603,10]
[420374890,1776045034382,-500.0,0.00032603,10]
[420374891,1776045034398,-183.26706617,0.00032603,10]
[420374892,1776045034412,-1281.47839901,0.00032603,10]
[420374893,1776045034424,-166.25453482,0.00032603,10]
[420374894,1776045034442,-1631.0,0.00032603,10]
[420374895,1776045034451,-500.0,0.00032603,10]
[420374896,1776045034482,-385.01552193,0.00032603,10]
[420374897,1776045034493,-1631.0,0.00032603,10]
[420374898,1776045034508,-500.0,0.00032603,10]
[420374899,1776045034530,-500.0,0.00032603,10]
[420374900,1776045034540,-500.0,0.00032603,10]
[420374901,1776045034570,-500.0,0.00032603,10]
[420374902,1776045034580,-1631.0,0.00032603,10]
[420374903,1776045034626,-500.0,0.00032603,10]
[420374904,1776045034651,-500.0,0.00032603,10]
[420374905,1776045034674,-500.0,0.00032603,10]
[420374906,1776045034713,-500.0,0.00032603,10]
[420374907,1776045034733,-500.0,0.00032603,10]
[420374908,1776045034764,-1631.0,0.00032603,10]
[420374909,1776045034779,-500.0,0.00032603,10]
[420374910,1776045034797,-500.0,0.00032603,10]
[420374911,1776045034808,-363.46580203,0.00032603,10]
[420374912,1776045034823,-1631.0,0.00032603,10]
[420374913,1776045034848,-1631.0,0.00032603,10]
[420374914,1776045034857,-1631.0,0.00032603,10]
[420374915,1776045034867,-1631.0,0.00032603,10]
[420374916,1776045034878,-1647.0,0.00032603,10]
[420374917,1776045034892,-338.7774505,0.0003265,5]
[420374918,1776045034901,-250.0,0.00032753,26]
[420374919,1776045034911,-260.05,0.00032753,26]
[420374920,1776045034929,-160.19615935,0.00032819,30]
[420374921,1776045034940,-184.97115286,0.00032849,120]
[420374922,1776045034949,-2614.4465864,0.00032994,2]
[420374923,1776045034959,-157.4961,0.000331,2]
[420374924,1776045034982,-429.712723,0.0003332,120]
[420374925,1776045034991,-188.53,0.000335,120]
[420374926,1776045035001,-487.0,0.00033796,2]
[420374927,1776045035011,-487.0,0.00033796,2]
[420374928,1776045035025,-487.0,0.00033796,2]
[420374929,1776045035035,-487.0,0.00033796,2]
[420374930,1776045035049,-659.86,0.00033796,2]
[420374931,1776045035059,-9696.49424597,0.00034,4]
[420374932,1776045035077,-307.79228484,0.00034,4]
[420374951,1776045040370,-3532.20722519,0.00034,4]
[420374952,1776045040394,-966.0,0.00034,30]
[420374953,1776045040405,-2000.0,0.0003412,2]
[420374954,1776045040415,-938.78646,0.000343,2]
[420374955,1776045040442,-158.0456,0.000344,2]
[420374956,1776045040466,-509.0,0.00034689,10]
[420374957,1776045040486,-1500.0,0.00034795,2]
[420374958,1776045040498,-937.08,0.00034811,120]
[420374959,1776045040541,-938.78645993,0.00034831,2]
[420374960,1776045040567,-451.07,0.00035,2]
[420374961,1776045040577,-220.2,0.0003529,2]
[420374962,1776045040594,-2399.0,0.00035616,120]
[420374963,1776045040618,-150.0,0.0003574,2]
[420374964,1776045040631,-451.07,0.0003578,5]
[420374965,1776045040642,-158.5971,0.000358,2]
[420374966,1776045040663,-152.0,0.00035872,7]
[420374967,1776045040677,-152.0,0.00035975,7]
[420374968,1776045040711,-152.0,0.00035975,7]
[420374969,1776045040721,-152.0,0.00035975,7]
[420374970,1776045040734,-152.0,0.00035975,7]
[420374971,1776045040754,-152.0,0.00035985,30]
[420374972,1776045040778,-152.0,0.00035985,30]
[420374973,1776045040787,-2614.4465864,0.00036411,2]
[420374974,1776045040808,-451.07,0.0003657,7]
[420374975,1776045040818,-281.11,0.00036594,2]
[420374976,1776045040828,-1074.65737,0.00036741,21]
[420374977,1776045040848,-342.685609,0.00036744,21]
[420374978,1776045040863,-1003.967058,0.00036744,21]
[420374979,1776045040873,-651.186137,0.00036744,21]
[420374980,1776045040887,-1574.0,0.00036755,11]
[420374981,1776045040903,-1587.0,0.00036756,11]
[420374982,1776045040913,-167.0,0.00036858,2]
[420374983,1776045040930,-185.66600709,0.00036898,2]
[420374984,1776045040939,-1574.0,0.0003703,11]
[420374985,1776045040955,-159.1505,0.000371,2]
[420374986,1776045040964,-393.17,0.000372,120]
[420374987,1776045040974,-2000.0,0.00037221,2]
[420374988,1776045040984,-162.0,0.00037275,11]
[420374989,1776045041000,-155.51,0.00037318,2]
[420374990,1776045041012,-504.44269582,0.00037319,15]
[420374991,1776045041022,-530.95,0.00037319,15]
[420374992,1776045041031,-451.07,0.0003735,45]
[420374993,1776045041041,-155.53,0.00037385,2]
[420374994,1776045041053,-300.0,0.000375,13]
[420374995,1776045041062,-600.0,0.000376,13]
[420374996,1776045041071,-900.0,0.000377,13]
[420374997,1776045041080,-163.0,0.00037716,11]
[420374998,1776045041090,-1200.0,0.000378,13]
[420374999,1776045041101,-4011.75,0.000378,120]
[420375000,1776045041111,-2500.0,0.00037899,2]
[420375001,1776045041120,-725.34697669,0.00037899,30]
[420375002,1776045041130,-1600.0,0.000379,13]
[420375003,1776045041144,-937.08,0.00037976,120]
[420375004,1776045041156,-613.0,0.00038,2]
[420375005,1776045041167,-10000.0,0.00038,120]
[420375006,1776045041178,-10000.0,0.00038,120]
[420375007,1776045041189,-167.43,0.00038,15]
[420375008,1776045041207,-2002.94,0.00038,15]
[420375009,1776045041217,-500.0,0.00038082,30]
[420375010,1776045041227,-500.0,0.00038082,30]
[420375011,1776045041238,-500.0,0.00038082,30]
[420375012,1776045041253,-500.0,0.00038082,30]
[420375013,1776045041270,-500.0,0.00038082,30]
[420375014,1776045041281,-500.0,0.00038082,30]
[420375015,1776045041292,-191.1828265,0.00038082,30]
[420375017,1776045041308,-500.0,0.00038082,30]
[420375019,1776045041322,-401.08056509,0.00038082,30]
[420375021,1776045041332,-500.0,0.00038082,30]
[420375023,1776045041347,-500.0,0.00038082,30]
[420375024,1776045041368,-500.0,0.00038082,30]
[420375025,1776045041379,-500.0,0.00038082,30]
[420375026,1776045041414,-173.32833605,0.00038082,30]
[420375027,1776045041430,-172.9001805,0.00038082,30]
[420375028,1776045041481,-500.0,0.00038082,30]
[420375029,1776045041490,-398.97788385,0.00038082,30]
[420375030,1776045041543,-161.58736836,0.00038082,30]
[420375031,1776045041575,-451.07,0.0003813,54]
[420375033,1776045041601,-158.7676455,0.00038156,2]
[420375035,1776045041628,-2934.65164328,0.00038156,2]
[420375037,1776045041640,-1417.88388524,0.00038156,2]
[420375041,1776045041735,-337.05962658,0.00038156,2]
[420375043,1776045041750,-1650.91704971,0.00038156,2]
[420375044,1776045041791,-413.78464052,0.00038156,2]
[420375052,1776045041881,-9799.38946957,0.00038156,2]